fUST/lending_fUST_20250827
["ID","MTS","AMOUNT","RATE_DAILY","PERIOD"]
[381492898,1756231832105,-7016.35612885,0.00029505,2]
[381492929,1756231835046,181.0,0.00026704,120]
[381492930,1756231836529,181.0,0.00028039,120]
[381492950,1756231837655,-5688.08185041,0.00029505,2]
[381492951,1756231837666,-175.337189,0.00029589,120]
[381492952,1756231837676,-1200.0,0.00029786,2]
[381492953,1756231837685,-160.0,0.00029787,2]
[381492954,1756231837695,-160.0,0.00029787,2]
[381492955,1756231837704,-376.39720582,0.00029787,2]
[381492956,1756231837714,-396.45,0.0002998,10]
[381492957,1756231837723,-330.37,0.0002998,10]
[381492958,1756231837733,-300.0,0.00029987,2]
[381492959,1756231837742,-300.0,0.00029987,2]
[381492961,1756231837753,-300.0,0.00029987,2]
[381492963,1756231837762,-300.0,0.00029987,2]
[381492964,1756231837771,-300.0,0.00029987,2]
[381492965,1756231837780,-1200.0,0.00029988,2]
[381492966,1756231837789,-500.0,0.00029989,2]
[381492967,1756231837799,-337.05288046,0.00029989,2]
[381492968,1756231837808,-500.0,0.00029989,2]
[381492969,1756231837818,-634.76903399,0.00029989,2]
[381492970,1756231837828,-176.58009133,0.00029989,2]
[381492971,1756231837837,-500.0,0.00029989,2]
[381492972,1756231837847,-500.0,0.00029989,2]
[381492973,1756231837856,-409.97113846,0.00029989,2]
[381492974,1756231837866,-500.0,0.00029989,2]
[381492975,1756231837875,-500.0,0.00029989,2]
[381492976,1756231837885,-249.57069156,0.00029989,2]
[381492977,1756231837894,-95520.69697332,0.0002999,2]
[381492978,1756231837903,-354.0,0.00030173,2]
[381492979,1756231837913,-354.0,0.00030179,2]
[381492980,1756231837923,-354.0,0.00030232,2]
[381492981,1756231837932,-1277.46464312,0.00030357,2]
[381492982,1756231837942,-354.0,0.00030505,2]
[381492983,1756231837951,-354.0,0.00030551,7]
[381492984,1756231837960,-354.0,0.00030685,2]
[381492985,1756231837970,-216.09257821,0.00030696,2]
[381492986,1756231837979,-1990.34501344,0.000307,2]
[381492987,1756231837989,-151.0,0.000307,2]
[381492988,1756231837998,-1123.93,0.00030769,3]
[381492989,1756231838008,-862.16,0.0003077,3]
[381492990,1756231838023,-156.36,0.0003077,3]
[381492991,1756231838032,-469.1,0.0003077,3]
[381492992,1756231838042,-849.06,0.0003077,3]
[381492993,1756231838051,-2247.86,0.0003077,3]
[381492994,1756231838062,-500.0,0.00030773,5]
[381492995,1756231838071,-500.0,0.00030773,5]
[381492996,1756231838080,-500.0,0.00030773,5]
[381492997,1756231838090,-500.0,0.00030773,5]
[381492998,1756231838100,-770.48470892,0.00030777,2]
[381492999,1756231838109,-630.86689625,0.00030777,2]
[381493000,1756231838119,-770.48470892,0.00030777,2]
[381493001,1756231838128,-770.48470892,0.00030777,2]
[381493002,1756231838138,-770.48470892,0.00030777,2]
[381493003,1756231838147,-770.48470892,0.00030777,2]
[381493004,1756231838158,-770.48470892,0.00030777,2]
[381493005,1756231838170,-770.48470892,0.00030777,2]
[381493006,1756231838180,-770.48470892,0.00030777,2]
[381493007,1756231838189,-770.48470892,0.00030777,2]
[381493008,1756231838199,-770.48470892,0.00030777,2]
[381493009,1756231838210,-770.48470892,0.00030777,2]
[381493010,1756231838220,-770.48470892,0.00030777,2]
[381493011,1756231838229,-770.48470892,0.00030777,2]
[381493012,1756231838239,-770.48470892,0.00030777,2]
[381493013,1756231838248,-770.48470892,0.00030777,2]
[381493014,1756231838257,-160.0,0.0003078,2]
[381493015,1756231838267,-94446.1456767,0.0003078,2]
[381493016,1756231838277,-3252.61827996,0.0003078,2]
[381493017,1756231838286,-217.18350301,0.0003078,2]
[381493018,1756231838296,-845.07960918,0.0003078,2]
[381493019,1756231838305,-13492.3065252,0.0003079,2]
[381493020,1756231838315,-464.65975428,0.0003079,2]
[381493021,1756231838326,-370000.0,0.0003079,2]
[381493022,1756231838336,-43370.52,0.000308,7]
[381493023,1756231838346,-1987.44,0.000308,7]
[381493024,1756231838355,-3384.78,0.000308,7]
[381493025,1756231838364,-9365.47,0.000308,2]
[381493026,1756231838374,-4305.77404296,0.00030817,2]
[381493027,1756231838383,-354.0,0.00030902,7]
[381493028,1756231838393,-13492.3065252,0.00030922,2]
[381493029,1756231838402,-464.65975428,0.00030922,2]
[381493030,1756231838411,-3056.8367562,0.00030932,2]
[381493031,1756231838420,-26984.6130505,0.0003098,2]
[381493032,1756231838430,-929.31950856,0.0003098,2]
[381493033,1756231838439,-354.0,0.0003108,2]
[381493034,1756231838448,-152.56395,0.00031116,2]
[381493035,1756231838458,-152.56395,0.00031232,2]
[381493036,1756231838467,-1000.0,0.00031321,5]
[381493037,1756231838476,-1000.0,0.00031321,5]
[381493038,1756231838485,-152.56395,0.00031348,2]
[381493039,1756231838495,-152.56395,0.00031464,2]
[381493040,1756231838505,-199.0,0.0003158,120]
[381493041,1756231838515,-168.0,0.00031623,2]
[381493042,1756231838525,-354.0,0.00031631,2]
[381493043,1756231838535,-199.0,0.0003168,120]
[381493044,1756231838545,-181.0,0.00031688,120]
[381493045,1756231838555,-354.0,0.00031703,7]
[381493046,1756231838564,-199.0,0.0003178,120]
[381493047,1756231838574,-168.0,0.00031828,2]
[381493048,1756231838583,-1000.0,0.00031829,2]
[381493049,1756231838592,-1663.83814183,0.00031851,28]
[381493050,1756231838601,-1334.21974476,0.00031868,5]
[381493051,1756231838610,-199.0,0.0003188,120]
[381493052,1756231838619,-354.0,0.00031882,2]
[381493053,1756231838628,-354.0,0.00031976,2]
[381493054,1756231838637,-199.0,0.0003198,120]
[381493055,1756231838646,-730.07117585,0.00031986,17]
[381493056,1756231838655,-500.0,0.00031998,2]
[381493057,1756231838665,-500.0,0.00031998,30]
[381493058,1756231838674,-500.0,0.00031998,7]
[381493059,1756231838683,-500.0,0.00031998,2]
[381493060,1756231838692,-500.0,0.00031998,30]
[381493061,1756231838701,-500.0,0.00031998,30]
[381493062,1756231838710,-500.0,0.00031998,10]
[381493063,1756231838719,-500.0,0.00031998,30]
[381493064,1756231838728,-500.0,0.00031998,2]
[381493065,1756231838738,-500.0,0.00031998,15]
[381493066,1756231838748,-500.0,0.00031998,10]
[381493067,1756231838757,-500.0,0.00031998,2]
[381493068,1756231838767,-500.0,0.00031998,15]
[381493069,1756231838777,-265.89,0.00031998,2]
[381493070,1756231838787,-3870.43261583,0.00032078,2]
[381493071,1756231838797,-7654.7094097,0.00032129,2]
[381493072,1756231838807,-2247.86,0.00032139,3]
[381493073,1756231838816,-312.72,0.0003214,3]
[381493074,1756231838826,-4495.72,0.0003214,3]
[381493075,1756231838835,-1680.0,0.00032247,3]
[381493076,1756231838845,-9365.47,0.000323,2]
[381493077,1756231838854,-220.0,0.0003232,3]
[381493078,1756231838863,-420.0,0.0003232,2]
[381493079,1756231838872,-184.0,0.0003232,3]
[381493080,1756231838881,-226.0,0.0003232,3]
[381493081,1756231838890,-220.0,0.0003232,3]
[381493082,1756231838899,-1517.0,0.00032321,3]
[381493083,1756231838908,-354.0,0.00032345,7]
[381493084,1756231838917,-354.0,0.00032471,2]
[381493085,1756231838927,-354.0,0.00032562,7]
[381493086,1756231838936,-354.0,0.00032681,2]
[381493087,1756231838945,-13492.3065252,0.0003269,2]
[381493088,1756231838955,-464.65975428,0.0003269,2]
[381493089,1756231838964,-43370.52,0.000327,7]
[381493090,1756231838974,-1987.44,0.000327,7]
[381493091,1756231838984,-3384.78,0.000327,7]
[381493092,1756231838994,-354.0,0.00032709,2]
[381493093,1756231839004,-160.0,0.00032715,2]
[381493094,1756231839014,-241.0,0.00033011,45]
[381493095,1756231839027,-307.612025,0.00033165,2]
[381493096,1756231839036,-260.0,0.00033263,2]
[381493097,1756231839046,-1990.34501342,0.00033274,2]
[381493098,1756231839055,-250.0,0.00033304,2]
[381493099,1756231839067,-730.07117585,0.00033712,21]
[381493100,1756231839077,-150.352,0.00033797,2]
[381493101,1756231839088,-360.0,0.00033811,2]
[381493102,1756231839099,-152.56395,0.00033905,5]
[381493103,1756231839110,-5000.0,0.00034011,4]
[381493104,1756231839120,-9365.47,0.000342,14]
[381493105,1756231839129,-13492.3065252,0.00034298,2]
[381493106,1756231839138,-464.65975428,0.00034298,2]
[381493107,1756231839148,-1097.0,0.00034308,2]
[381493108,1756231839157,-2156.0,0.00034308,2]
[381493109,1756231839167,-638.0,0.00034308,2]
[381493110,1756231839176,-460.0,0.00034359,2]
[381493111,1756231839188,-409.0,0.00034408,2]
[381493112,1756231839197,-500.0,0.0003446,5]
[381493113,1756231839207,-500.0,0.0003446,5]
[381493114,1756231839216,-500.0,0.0003446,5]
[381493115,1756231839226,-500.0,0.0003446,5]
[381493116,1756231839236,-500.0,0.0003446,5]
[381493117,1756231839245,-500.0,0.0003446,5]
[381493118,1756231839257,-509.06738748,0.0003446,5]
[381493119,1756231839266,-500.0,0.0003446,5]
[381493120,1756231839275,-152.56395,0.00034697,20]
[381493121,1756231839284,-150.0,0.0003481,2]
[381493123,1756231839293,-150.0,0.0003481,2]
[381493124,1756231839303,-587.0,0.00034834,2]
[381493125,1756231839312,-560.0,0.00034907,2]
[381493126,1756231839321,-2351.0,0.0003491,3]
[381493127,1756231839331,-843.64439473,0.00035008,5]
[381493128,1756231839340,-1000.0,0.00035008,5]
[381493130,1756231839350,-500.0,0.00035008,5]
[381493132,1756231839360,-1000.0,0.00035008,5]
[381493135,1756231839369,-1000.0,0.00035008,5]
[381493137,1756231839378,-1000.0,0.00035008,5]
[381493138,1756231839389,-1000.0,0.00035008,5]
[381493139,1756231839398,-730.07117585,0.00035439,24]
[381493140,1756231839407,-660.0,0.00035455,2]
[381493141,1756231839418,-13492.3065252,0.0003549,3]
[381493142,1756231839428,-464.65975428,0.0003549,3]
[381493143,1756231839438,-43370.52,0.000355,14]
[381493144,1756231839447,-1009.72641863,0.00035556,5]
[381493145,1756231839456,-1500.0,0.00035556,5]
[381493146,1756231839466,-1500.0,0.00035556,5]
[381493147,1756231839475,-870.8673848,0.00035556,5]
[381493148,1756231839485,-1500.0,0.00035556,5]
[381493149,1756231839498,-500.0,0.00035616,7]
[381493151,1756231839508,-500.0,0.00035616,7]
[381493152,1756231839517,-500.0,0.00035616,7]
[381493153,1756231839527,-500.0,0.00035616,7]
[381493154,1756231839537,-500.0,0.00035616,7]
[381493155,1756231839548,-500.0,0.00035616,7]
[381493157,1756231839558,-500.0,0.00035616,7]
[381493158,1756231839567,-500.0,0.00035616,7]
[381493159,1756231839578,-500.0,0.00035616,7]
[381493160,1756231839588,-500.0,0.00035616,7]
[381493161,1756231839598,-500.0,0.00035616,7]
[381493162,1756231839607,-500.0,0.00035616,7]
[381493163,1756231839617,-500.0,0.00035616,7]
[381493164,1756231839626,-500.0,0.00035616,7]
[381493165,1756231839635,-500.0,0.00035616,7]
[381493166,1756231839645,-500.0,0.00035616,7]
[381493167,1756231839655,-500.0,0.00035616,7]
[381493168,1756231839664,-500.0,0.00035616,7]
[381493169,1756231839674,-500.0,0.00035616,7]
[381493170,1756231839683,-500.0,0.00035616,7]
[381493172,1756231839693,-283.55041776,0.00035616,7]
[381493174,1756231839702,-500.0,0.00035616,7]
[381493176,1756231839712,-500.0,0.00035616,7]
[381493178,1756231839722,-500.0,0.00035616,7]
[381493180,1756231839731,-500.0,0.00035616,7]
[381493182,1756231839742,-191.57843598,0.00035616,2]
[381493184,1756231839752,-1987.44,0.000357,7]
[381493186,1756231839761,-3384.78,0.000357,7]
[381493188,1756231839771,-1990.34501342,0.00035847,2]
[381493190,1756231839781,-152.56395,0.00035908,5]
[381493192,1756231839790,-760.0,0.00036003,2]
[381493194,1756231839798,-2000.0,0.00036104,5]
[381493196,1756231839808,-2000.0,0.00036104,5]
[381493198,1756231839818,-9365.47,0.000365,14]
[381493200,1756231839827,-860.0,0.00036551,2]
[381493202,1756231839836,-2500.0,0.00036652,5]
[381493204,1756231839847,-2500.0,0.00036652,5]
[381493206,1756231839856,-152.56395,0.00036729,7]
[381493208,1756231839865,-150.0,0.00036797,2]
[381493210,1756231839874,-501.84261226,0.00036884,13]
[381493212,1756231839884,-175.337189,0.00036986,120]
[381493214,1756231839893,-960.0,0.00037099,2]
[381493216,1756231839903,-730.07117585,0.00037166,28]
[381493218,1756231839912,-3046.08317985,0.000372,5]
[381493220,1756231839921,-3000.0,0.000372,5]
[381493222,1756231839930,-13492.3065252,0.00037298,3]
[381493224,1756231839939,-464.65975428,0.00037298,3]
[381493226,1756231839948,-974.0,0.00037308,2]
[381493228,1756231839957,-2156.0,0.00037308,2]
[381493230,1756231839966,-638.0,0.00037308,2]
[381493232,1756231839976,-152.56395,0.00037398,20]
[381493234,1756231839985,-409.0,0.00037408,2]
[381493236,1756231839995,-823.0,0.00037544,2]
[381493238,1756231840005,-1060.0,0.00037647,2]
[381493240,1756231840014,-3246.73612045,0.00037748,5]
[381493242,1756231840026,-1898.0,0.00037794,3]
[381493244,1756231840035,-150.0,0.0003781,2]
[381493246,1756231840046,-152.56395,0.00037911,5]
[381493248,1756231840055,-13492.3065252,0.0003799,3]
[381493250,1756231840066,-464.65975428,0.0003799,3]
[381493273,1756231840266,-43370.52,0.00038,14]
[381493275,1756231840276,-3367.23253829,0.00038048,3]
[381493278,1756231840286,-1160.0,0.00038195,2]
[381493280,1756231840296,-1987.44,0.000382,7]
[381493282,1756231840306,-3384.78,0.000382,7]
[381493284,1756231840315,-187.09935736,0.00038293,14]
[381493286,1756231840324,-500.0,0.00038356,120]
[381493288,1756231840333,-9365.47,0.000384,14]
[381493290,1756231840343,-161.0922331,0.0003842,30]
[381493292,1756231840353,-322.1844662,0.0003842,30]
[381493294,1756231840362,-306.0,0.0003842,30]
[381493296,1756231840371,-153.0,0.0003842,30]
[381493298,1756231840380,-294.3576271,0.0003842,30]
[381493300,1756231840389,-294.3576271,0.0003842,30]
[381493302,1756231840398,-153.0,0.0003842,30]
[381493304,1756231840408,-153.0,0.0003842,30]
[381493306,1756231840418,-322.1844662,0.0003842,30]
[381493308,1756231840427,-1177.6450248,0.0003842,30]
[381493310,1756231840436,-286.8697805,0.0003842,30]
[381493312,1756231840445,-161.0922331,0.0003842,30]
[381493314,1756231840454,-176.8367364,0.0003842,30]
[381493316,1756231840463,-306.0,0.0003842,30]
[381493317,1756231840472,-161.0922331,0.0003842,30]
[381493319,1756231840481,-294.3576271,0.0003842,30]
[381493321,1756231840490,-161.0922331,0.0003842,30]
[381493322,1756231840500,-161.0922331,0.0003842,30]
[381493323,1756231840509,-161.0922331,0.0003842,30]
[381493324,1756231840520,-161.0922331,0.0003842,30]
[381493325,1756231840529,-288.5871893,0.0003842,30]
[381493326,1756231840538,-153.0,0.0003842,30]
[381493327,1756231840548,-153.0,0.0003842,30]
[381493328,1756231840557,-153.0,0.0003842,30]
[381493329,1756231840567,-153.0,0.0003842,30]
[381493330,1756231840576,-394.4629129,0.0003842,30]
[381493331,1756231840585,-387.3413864,0.0003842,30]
[381493332,1756231840595,-387.3413864,0.0003842,30]
[381493333,1756231840605,-387.3413864,0.0003842,30]
[381493334,1756231840614,-1990.34501342,0.00038421,2]
[381493335,1756231840623,-152.56395,0.00038458,7]
[381493336,1756231840633,-3000.0,0.000386,36]
[381493337,1756231840643,-3000.0,0.0003861,36]
[381493338,1756231840652,-3000.0,0.0003862,36]
[381493339,1756231840663,-3000.0,0.0003863,36]
[381493340,1756231840672,-3000.0,0.0003864,36]
[381493341,1756231840682,-3000.0,0.0003865,36]
[381493342,1756231840693,-464.65975428,0.0003865,3]
[381493343,1756231840703,-3000.0,0.0003866,36]
[381493344,1756231840712,-3000.0,0.0003867,36]
[381493345,1756231840722,-3000.0,0.0003868,36]
[381493346,1756231840732,-3000.0,0.0003869,36]
[381493347,1756231840741,-3000.0,0.000387,36]
[381493348,1756231840751,-3000.0,0.0003871,36]
[381493349,1756231840761,-3000.0,0.0003872,36]
[381493350,1756231840771,-3000.0,0.0003873,36]
[381493351,1756231840781,-3000.0,0.0003874,36]
[381493352,1756231840790,-1260.0,0.00038743,2]
[381493353,1756231840800,-4004.308894,0.0003875,36]
[381493354,1756231840810,-730.07117585,0.00038892,32]
[381493355,1756231840819,-500.0,0.00038903,7]
[381493356,1756231840829,-500.0,0.00038904,120]
[381493357,1756231840838,-529.4218694,0.00039,30]
[381493358,1756231840847,-417.15472785,0.00039,30]
[381493359,1756231840857,-1360.0,0.00039291,2]
[381493360,1756231840865,-500.0,0.00039452,120]
[381493361,1756231840875,-307.612025,0.00039654,2]
[381493362,1756231840884,-150.0,0.00039797,2]
[381493363,1756231840894,-369.49495995,0.00039839,2]
[381493364,1756231840903,-152.56395,0.00039914,5]
[381493365,1756231840912,-800.0,0.00039918,7]
[381493366,1756231840921,-500.0,0.00039946,7]
[381493367,1756231840931,-500.0,0.00039957,7]
[381493368,1756231840944,-500.0,0.0004,120]
[381493369,1756231840953,-800.0,0.00040077,30]
[381493370,1756231840963,-500.0,0.00040085,30]
[381493371,1756231840973,-464.65975428,0.0004009,3]
[381493372,1756231840983,-152.56395,0.00040099,20]
[381493373,1756231840994,-43370.52,0.000401,14]
[381493374,1756231841004,-800.0,0.00040146,30]
[381493375,1756231841014,-152.56395,0.00040188,7]
[381493376,1756231841028,-464.65975428,0.0004019,3]
[381493377,1756231841037,-1987.44,0.000402,7]
[381493378,1756231841046,-3384.78,0.000402,7]
[381493379,1756231841056,-500.0,0.00040212,30]
[381493380,1756231841067,-869.81034234,0.0004024,2]
[381493381,1756231841078,-500.0,0.00040265,30]
[381493382,1756231841089,-12500.0,0.00040274,10]
[381493383,1756231841102,-151.0,0.000403,16]
[381493384,1756231841114,-9365.47,0.000403,14]
[381493385,1756231841123,-974.0,0.00040308,2]
[381493386,1756231841133,-2156.0,0.00040308,2]
[381493387,1756231841142,-638.0,0.00040308,2]
[381493388,1756231841152,-409.0,0.00040408,2]
[381493389,1756231841161,-1152.0,0.00040464,5]
[381493390,1756231841172,-500.0,0.00040493,30]
[381493391,1756231841181,-152.56395,0.000405,60]
[381493392,1756231841191,-797.25287593,0.00040539,7]
[381493393,1756231841200,-500.0,0.00040547,7]
[381493394,1756231841209,-500.0,0.00040547,120]
[381493395,1756231841218,-500.0,0.00040556,30]
[381493396,1756231841228,-800.0,0.00040577,7]
[381493397,1756231841238,-730.07117585,0.00040619,36]
[381493398,1756231841247,-800.0,0.00040625,7]
[381493399,1756231841257,-500.0,0.0004065,30]
[381493400,1756231841268,-800.0,0.00040668,30]
[381493401,1756231841279,-2200.0,0.00040739,14]
[381493402,1756231841289,-500.0,0.00040773,5]
[381493403,1756231841299,-500.0,0.00040773,5]
[381493404,1756231841309,-150.68470968,0.00040773,5]
[381493405,1756231841318,-500.0,0.00040773,2]
[381493406,1756231841327,-164.74471917,0.00040773,5]
[381493407,1756231841336,-378.4820383,0.0004078,7]
[381493408,1756231841346,-464.65975428,0.0004079,3]
[381493409,1756231841358,-45184.99077115,0.000408,90]
[381493410,1756231841374,-103515.72954727,0.000408,90]
[381493411,1756231841386,-617.69,0.000408,90]
[381493412,1756231841928,-136.14513388,0.00029441,120]
[381493416,1756231843042,-44.85486612,0.00029441,120]
[381493417,1756231843053,-199.0,0.00029489,120]
[381493418,1756231843069,-160.0,0.00029505,2]
[381493419,1756231843081,-500.0,0.00030777,2]
[381493420,1756231843092,-561.97,0.0004079,3]
[381493421,1756231843103,-106059.15968158,0.000408,90]
[381493422,1756231843114,-151.0,0.000408,30]
[381493423,1756231843124,-151.0,0.000408,30]
[381493424,1756231843134,-151.0,0.000408,30]
[381493425,1756231843144,-151.0,0.000408,30]
[381493427,1756231843155,-151.0,0.000408,30]
[381493429,1756231843166,-151.0,0.000408,30]
[381493431,1756231843177,-154.236402,0.000408,30]
[381493432,1756231843188,-151.0,0.000408,30]
[381493433,1756231843198,-151.0,0.000408,30]
[381493434,1756231843208,-151.0,0.000408,30]
[381493435,1756231843217,-219.713195,0.000408,30]
[381493436,1756231843227,-151.0,0.000408,30]
[381493437,1756231843237,-151.0,0.000408,30]
[381493438,1756231843248,-151.0,0.000408,30]
[381493439,1756231843259,-151.0,0.000408,30]
[381493440,1756231843269,-150.0,0.0004081,2]
[381493441,1756231843279,-500.0,0.00040812,30]
[381493442,1756231843289,-150.0,0.00040847,2]
[381493443,1756231843300,-500.0,0.00040858,30]
[381493444,1756231843310,-151.0,0.000409,17]
[381493445,1756231843320,-500.0,0.0004091,30]
[381493446,1756231843330,-500.0,0.0004091,30]
[381493447,1756231843340,-500.0,0.0004091,30]
[381493448,1756231843350,-500.0,0.0004091,30]
[381493449,1756231843360,-500.0,0.0004091,30]
[381493450,1756231843369,-500.0,0.0004098,30]
[381493451,1756231843379,-150.0,0.00040987,2]
[381493452,1756231843390,-500.0,0.00040989,30]
[381493453,1756231843399,-1990.34501342,0.00040994,2]
[381493454,1756231843408,-11409.91498114,0.00040995,2]
[381493455,1756231843417,-159.70548078,0.00040995,120]
[381493456,1756231843427,-2211.69,0.00041,60]
[381493457,1756231843436,-150.0,0.00041,120]
[381493458,1756231843446,-529.4218694,0.00041,10]
[381493459,1756231843455,-417.15472785,0.00041,10]
[381493460,1756231843465,-500.0,0.00041073,5]
[381493461,1756231843474,-500.0,0.00041073,5]
[381493462,1756231843484,-500.0,0.00041073,5]
[381493463,1756231843493,-500.0,0.00041073,5]
[381493464,1756231843503,-243.942292,0.00041084,30]
[381493465,1756231843512,-151.0,0.00041084,30]
[381493466,1756231843521,-98464.152862,0.00041093,2]
[381493467,1756231843531,-151.0,0.00041094,30]
[381493468,1756231843542,-213.350436,0.00041094,30]
[381493469,1756231843551,-151.0,0.00041094,30]
[381493470,1756231843561,-151.0,0.00041094,30]
[381493471,1756231843570,-152.627383,0.00041094,30]
[381493472,1756231843579,-151.0,0.00041094,30]
[381493473,1756231843588,-151.0,0.00041094,30]
[381493474,1756231843598,-151.0,0.00041094,30]
[381493475,1756231843608,-151.0,0.00041094,30]
[381493476,1756231843618,-151.0,0.00041094,30]
[381493477,1756231843628,-152.475477,0.00041094,30]
[381493478,1756231843637,-500.0,0.00041094,120]
[381493479,1756231843646,-151.0,0.00041094,120]
[381493480,1756231843656,-151.0,0.00041094,120]
[381493481,1756231843665,-151.0,0.00041094,120]
[381493482,1756231843674,-500.0,0.00041094,120]
[381493483,1756231843683,-151.0,0.00041094,120]
[381493484,1756231843692,-16000.0,0.00041094,120]
[381493485,1756231843702,-151.0,0.00041094,120]
[381493486,1756231843711,-300.0,0.00041094,120]
[381493487,1756231843720,-500.0,0.00041094,120]
[381493488,1756231843730,-1888.0,0.00041094,60]
[381493489,1756231843739,-156.587,0.00041094,120]
[381493490,1756231843749,-151.0,0.00041094,120]
[381493491,1756231843758,-16592.0,0.00041094,120]
[381493492,1756231843768,-151.0,0.00041094,120]
[381493493,1756231843777,-167.83417776,0.00041094,120]
[381493494,1756231843786,-300.0,0.00041094,120]
[381493495,1756231843795,-500.0,0.00041094,120]
[381493496,1756231843805,-17205.904,0.00041094,120]
[381493497,1756231843814,-151.0,0.00041094,120]
[381493498,1756231843823,-151.0,0.00041094,120]
[381493499,1756231843833,-1957.856,0.00041094,60]
[381493500,1756231843842,-162.380719,0.00041094,120]
[381493501,1756231843851,-500.0,0.00041094,120]
[381493502,1756231843860,-17842.522448,0.00041094,120]
[381493503,1756231843869,-151.0,0.00041094,120]
[381493504,1756231843878,-300.0,0.00041094,120]
[381493505,1756231843887,-151.0,0.00041094,120]
[381493506,1756231843897,-2030.296672,0.00041094,60]
[381493507,1756231843906,-168.3888056,0.00041094,120]
[381493508,1756231843915,-500.0,0.00041094,120]
[381493509,1756231843924,-18502.69577858,0.00041094,120]
[381493510,1756231843934,-151.0,0.00041094,120]
[381493511,1756231843943,-151.0,0.00041094,120]
[381493512,1756231843953,-300.0,0.00041094,120]
[381493513,1756231843963,-2105.41764886,0.00041094,60]
[381493514,1756231843972,-300.0,0.00041094,120]
[381493515,1756231843981,-174.61919141,0.00041094,120]
[381493516,1756231843990,-19187.29552238,0.00041094,120]
[381493517,1756231844000,-151.0,0.00041094,120]
[381493518,1756231844011,-151.0,0.00041094,120]
[381493519,1756231844023,-300.0,0.00041094,120]
[381493520,1756231844033,-151.0,0.00041094,120]
[381493521,1756231844043,-2183.31810187,0.00041094,60]
[381493522,1756231844066,-300.0,0.00041094,120]
[381493523,1756231844076,-500.0,0.00041094,120]
[381493524,1756231844086,-181.08010149,0.00041094,120]
[381493525,1756231844095,-1446.12727623,0.00041094,120]
[381493526,1756231844105,-151.0,0.00041094,120]
[381493527,1756231844114,-300.0,0.00041094,120]
[381493528,1756231844124,-2264.10087164,0.00041094,60]
[381493529,1756231844134,-300.0,0.00041094,120]
[381493530,1756231844143,-187.78006525,0.00041094,120]
[381493531,1756231844153,-151.0,0.00041094,120]
[381493532,1756231844163,-300.0,0.00041094,120]
[381493533,1756231844176,-812.43136503,0.00041094,60]
[381493534,1756231844185,-300.0,0.00041094,120]
[381493535,1756231844194,-194.72792766,0.00041094,120]
[381493536,1756231844205,-151.0,0.00041094,120]
[381493537,1756231844214,-300.0,0.00041094,120]
[381493538,1756231844223,-201.93286099,0.00041094,120]
[381493539,1756231844233,-151.0,0.00041094,120]
[381493540,1756231844243,-300.0,0.00041094,120]
[381493541,1756231844252,-209.40437684,0.00041094,120]
[381493542,1756231844261,-151.0,0.00041094,120]
[381493543,1756231844271,-250.0,0.00041094,120]
[381493544,1756231844490,-300.0,0.00041094,120]
[381493545,1756231844499,-151.0,0.00041094,120]
[381493546,1756231844509,-217.15233878,0.00041094,120]
[381493547,1756231844518,-250.0,0.00041094,120]
[381493548,1756231844527,-151.0,0.00041094,120]